fUSD/lending_fUSD_20260418
["ID","MTS","AMOUNT","RATE_DAILY","PERIOD"]
[420755741,1776525158366,-3647.8,0.00043951,120]
[420755742,1776525158431,-3647.8,0.00043951,120]
[420755743,1776525158495,-3647.8,0.00043951,120]
[420755744,1776525158563,-3647.8,0.00043951,120]
[420755745,1776525158629,-3647.8,0.00043951,120]
[420755746,1776525158693,-3647.8,0.00043951,120]
[420755747,1776525158756,-3647.8,0.00043951,120]
[420755748,1776525158821,-3647.8,0.00043951,120]
[420755749,1776525158887,-3647.93089412,0.00043951,120]
[420755750,1776525158955,-8632.15,0.00043951,120]
[420755751,1776525159018,-8632.15,0.00043951,120]
[420755752,1776525159081,-8632.15,0.00043951,120]
[420755753,1776525159143,-6970.28,0.00043951,120]
[420755754,1776525159208,-8632.15,0.00043951,120]
[420755755,1776525159273,-6970.28,0.00043951,120]
[420755756,1776525159336,-6970.28,0.00043951,120]
[420755757,1776525159399,-8632.15,0.00043951,120]
[420755758,1776525159463,-6970.28,0.00043951,120]
[420755759,1776525160086,-8632.15,0.00043951,120]
[420755760,1776525160151,-1518.98320744,0.00043951,120]
[420755761,1776525179392,-3000.0,9.808e-05,2]
[420755762,1776525179402,-260.0,9.863e-05,2]
[420755763,1776525179412,-1200.0,9.898e-05,2]
[420755764,1776525179421,-150.0,9.899e-05,2]
[420755765,1776525179431,-300.0,9.899e-05,2]
[420755766,1776525179441,-1200.0,9.899e-05,2]
[420755767,1776525179450,-300.0,9.899e-05,2]
[420755768,1776525179459,-26236.63938338,9.9e-05,2]
[420755769,1776525179471,-397.84647269,9.9e-05,2]
[420755770,1776525179498,-1849.66319346,9.9e-05,2]
[420755771,1776525179510,-572.04701882,9.9e-05,2]
[420755772,1776525179987,-796.01445531,9.9e-05,2]
[420755773,1776525179999,-7597.2,9.9e-05,2]
[420755774,1776525180011,-691.58645727,9.9e-05,2]
[420755775,1776525180023,-874.22355268,9.9e-05,2]
[420755776,1776525180034,-2484.84122466,9.9e-05,2]
[420755777,1776525180046,-302.036,9.9e-05,2]
[420755778,1776525180058,-4064.38736795,9.9e-05,2]
[420755779,1776525180069,-737.25630739,9.9e-05,2]
[420755780,1776525180080,-315.0,9.9e-05,2]
[420755781,1776525180091,-7426.14551341,9.9e-05,2]
[420755782,1776525180103,-86364.75771922,9.9e-05,2]
[420755783,1776525180116,-708.38683977,9.9e-05,2]
[420755784,1776525180128,-2992.09560657,9.9e-05,2]
[420755785,1776525180139,-1089.19505249,9.9e-05,2]
[420755786,1776525180150,-2692.33929163,9.9e-05,2]
[420755787,1776525180164,-748.26893567,9.9e-05,2]
[420755788,1776525180176,-844.95256298,9.9e-05,2]
[420755789,1776525180188,-358.69205517,9.9e-05,2]
[420755790,1776525180199,-3494.11304809,9.9e-05,2]
[420755791,1776525180234,-6667.26990554,9.9e-05,2]
[420755792,1776525180247,-49831.96705997,9.9e-05,2]
[420755793,1776525180258,-20153.67777399,9.9e-05,2]
[420755794,1776525180269,-875.89626483,9.9e-05,2]
[420755795,1776525180291,-3200.11346992,9.9e-05,2]
[420755796,1776525180304,-3812.9,9.9e-05,2]
[420755797,1776525180319,-899.72188916,9.9e-05,2]
[420755798,1776525180331,-1025.49280924,9.9e-05,2]
[420755799,1776525180342,-1143.02886874,9.9e-05,2]
[420755800,1776525180352,-7993.66113126,9.9e-05,2]
[420755801,1776525180363,-3337.79532226,9.9e-05,2]
[420755802,1776525180375,-11238.88023036,9.9e-05,2]
[420755803,1776525180613,-570.11469939,9.9e-05,2]
[420755804,1776525180625,-154974.30771673,9.9e-05,2]
[420755805,1776525180634,-500.0,9.973e-05,2]
[420755806,1776525180643,-2671.44,9.974e-05,2]
[420755807,1776525180653,-191.683,9.974e-05,2]
[420755808,1776525180663,-66979.07582077,0.0001,2]
[420755809,1776525180672,-265.71631727,0.0001,2]
[420755810,1776525180682,-265.71631727,0.0001,2]
[420755811,1776525180692,-265.71631727,0.0001,2]
[420755812,1776525180703,-300.0,0.0001,3]
[420755813,1776525180713,-1500.0,0.00010165,2]
[420755814,1776525180723,-166.44,0.00010181,2]
[420755815,1776525180732,-1143.9274,0.00010302,2]
[420755816,1776525180742,-500.0,0.00010401,2]
[420755817,1776525180751,-500.0,0.00010401,2]
[420755818,1776525180761,-500.0,0.00010401,2]
[420755819,1776525180770,-500.0,0.00010401,2]
[420755820,1776525180779,-6319.73454413,0.00010572,2]
[420755821,1776525180789,-14229.43,0.0001058,2]
[420755822,1776525180799,-150.0,0.00010795,5]
[420755823,1776525180810,-150.0,0.000108,2]
[420755824,1776525180820,-150.0,0.000108,2]
[420755825,1776525180830,-150.0,0.000108,2]
[420755826,1776525180839,-150.0,0.000108,2]
[420755827,1776525180849,-150.0,0.000108,2]
[420755828,1776525180858,-150.0,0.000108,2]
[420755829,1776525180867,-622.0,0.00010832,2]
[420755830,1776525180876,-1349.0,0.00010832,2]
[420755831,1776525180886,-3528.0,0.00010832,2]
[420755832,1776525180895,-1265.0,0.00010832,2]
[420755833,1776525180905,-150.0,0.00010832,2]
[420755834,1776525180915,-2473.0,0.00010832,2]
[420755835,1776525180924,-250.0,0.00010849,2]
[420755836,1776525180933,-253.67350731,0.00010877,4]
[420755837,1776525180942,-255.0,0.00010889,2]
[420755838,1776525180952,-300.0,0.00010889,2]
[420755839,1776525180962,-700.0,0.000109,3]
[420755840,1776525180971,-11956.40537385,0.000109,2]
[420755841,1776525180980,-17949.02132376,0.00011099,2]
[420755842,1776525180989,-3000.0,0.00011178,2]
[420755843,1776525180999,-700.0,0.00011716,2]
[420755844,1776525181009,-166.44,0.00011877,2]
[420755845,1776525181018,-1100.0,0.000119,4]
[420755846,1776525181028,-1046.7974207,0.000119,2]
[420755847,1776525181038,-250.0,0.00011901,2]
[420755848,1776525181047,-250.0,0.00011901,2]
[420755849,1776525181056,-250.0,0.00011901,2]
[420755850,1776525181066,-393.26,0.00011901,2]
[420755851,1776525181076,-916.57593684,0.00011954,2]
[420755852,1776525182597,-2218.16188037,0.00011954,2]
[420755853,1776525182607,-430.83516223,0.00011973,2]
[420755854,1776525182802,-7366.72483777,0.00011973,2]
[420755855,1776525182812,-500.0,0.00011999,2]
[420755856,1776525182821,-500.0,0.00011999,2]
[420755857,1776525182830,-500.0,0.00011999,2]
[420755858,1776525182840,-8331.60697418,0.00012,2]
[420755859,1776525182851,-11236.25029791,0.00012,2]
[420755860,1776525182862,-43296.99403303,0.00012,2]
[420755861,1776525182873,-8056.25780499,0.00012,2]
[420755862,1776525182885,-530.44249213,0.00012,2]
[420755863,1776525182896,-947.97853585,0.00012,2]
[420755864,1776525182907,-57326.51376121,0.00012,2]
[420755865,1776525182919,-355559.86104145,0.00012,2]
[420755866,1776525182928,-61946.90712631,0.00012,2]
[420755867,1776525182937,-150.0,0.00012,2]
[420755868,1776525182947,-150.0,0.00012328,2]
[420755869,1776525182957,-2000.0,0.0001244,2]
[420755870,1776525182966,-1520.44997767,0.00012457,2]
[420755871,1776525182975,-17949.02132372,0.00012457,2]
[420755872,1776525182985,-3000.0,0.00012548,2]
[420755873,1776525182994,-246.0,0.000126,5]
[420755874,1776525183003,-1449.27920953,0.00012668,4]
[420755875,1776525183012,-1932.37227938,0.00012668,4]
[420755876,1776525183022,-1600.0,0.00012842,2]
[420755877,1776525183031,-250.0,0.00013,2]
[420755878,1776525183041,-155.0,0.00013199,2]
[420755879,1776525183050,-3240.0,0.00013425,2]
[420755880,1776525183059,-2000.0,0.00013571,2]
[420755881,1776525183068,-166.44,0.00013574,2]
[420755882,1776525183078,-1086.1218991,0.00013697,3]
[420755883,1776525183089,-500.0,0.00013698,2]
[420755884,1776525183098,-500.0,0.00013698,2]
[420755885,1776525183108,-500.0,0.00013698,2]
[420755886,1776525183117,-500.0,0.00013698,2]
[420755887,1776525183128,-500.0,0.00013698,2]
[420755888,1776525183137,-518.13442133,0.00013698,2]
[420755889,1776525183146,-615.45,0.00013698,2]
[420755890,1776525183156,-615.45,0.00013698,2]
[420755891,1776525183166,-615.45,0.00013698,2]
[420755892,1776525183176,-615.45,0.00013698,2]
[420755893,1776525183185,-615.45,0.00013698,2]
[420755894,1776525183194,-615.45,0.00013698,2]
[420755895,1776525183204,-615.45,0.00013698,2]
[420755896,1776525183213,-615.45,0.00013698,2]
[420755897,1776525183223,-615.45,0.00013698,2]
[420755898,1776525183232,-615.45,0.00013698,2]
[420755899,1776525183242,-615.45,0.00013698,2]
[420755900,1776525183252,-615.45,0.00013698,2]
[420755901,1776525183262,-615.45,0.00013698,2]
[420755902,1776525183272,-615.45,0.00013698,2]
[420755903,1776525183282,-615.45,0.00013698,2]
[420755904,1776525183291,-615.45,0.00013698,2]
[420755905,1776525183300,-615.45,0.00013698,2]
[420755906,1776525183310,-615.45,0.00013698,2]
[420755907,1776525183320,-500.0,0.00013698,2]
[420755908,1776525183329,-500.0,0.00013698,2]
[420755909,1776525183338,-500.0,0.00013698,2]
[420755910,1776525183347,-352.00457546,0.00013698,2]
[420755911,1776525183356,-500.0,0.00013698,2]
[420755912,1776525183366,-500.0,0.00013698,2]
[420755913,1776525183375,-500.0,0.00013698,2]
[420755914,1776525183385,-500.0,0.00013698,2]
[420755915,1776525183394,-500.0,0.00013698,2]
[420755916,1776525183404,-500.0,0.00013698,2]
[420755917,1776525183414,-200.0,0.00013698,2]
[420755918,1776525183423,-500.0,0.00013698,2]
[420755919,1776525183432,-500.0,0.00013698,2]
[420755920,1776525183442,-500.0,0.00013698,2]
[420755921,1776525183451,-500.0,0.00013698,2]
[420755922,1776525183461,-502.13012264,0.00013698,2]
[420755923,1776525183470,-500.0,0.00013698,2]
[420755924,1776525183480,-500.0,0.00013698,2]
[420755925,1776525183489,-500.0,0.00013698,2]
[420755926,1776525183498,-500.0,0.00013698,2]
[420755927,1776525183507,-500.0,0.00013698,2]
[420755928,1776525183517,-500.0,0.00013698,2]
[420755929,1776525183527,-500.0,0.00013698,2]
[420755930,1776525183536,-500.18582078,0.00013698,2]
[420755931,1776525183546,-500.0,0.00013698,2]
[420755932,1776525183555,-500.0,0.00013698,2]
[420755933,1776525183564,-500.0,0.00013698,2]
[420755934,1776525183574,-500.0,0.00013698,2]
[420755935,1776525183583,-500.0,0.00013698,2]
[420755936,1776525183592,-500.0,0.00013698,2]
[420755937,1776525183602,-500.0,0.00013698,2]
[420755938,1776525183613,-500.0,0.00013698,2]
[420755939,1776525183622,-500.35830066,0.00013698,2]
[420755940,1776525183634,-500.0,0.00013698,2]
[420755941,1776525183643,-500.0,0.00013698,2]
[420755942,1776525183653,-500.0,0.00013698,2]
[420755943,1776525183662,-500.0,0.00013698,2]
[420755944,1776525183672,-186.06992462,0.00013698,2]
[420755945,1776525183685,-313.93007538,0.00013698,2]
[420755946,1776525183694,-500.0,0.00013698,2]
[420755947,1776525183704,-500.0,0.00013698,2]
[420755948,1776525183713,-500.0,0.00013698,2]
[420755949,1776525183722,-500.0,0.00013698,2]
[420755950,1776525183732,-500.0,0.00013698,2]
[420755951,1776525183741,-500.0,0.00013698,2]
[420755952,1776525183750,-500.0,0.00013698,2]
[420755953,1776525183759,-500.0,0.00013698,2]
[420755954,1776525183768,-500.0,0.00013698,2]
[420755955,1776525183777,-500.0,0.00013698,2]
[420755956,1776525183786,-500.0,0.00013698,2]
[420755957,1776525183795,-500.0,0.00013698,2]
[420755958,1776525183805,-500.0,0.00013698,2]
[420755959,1776525183814,-500.0,0.00013698,2]
[420755960,1776525183823,-500.0,0.00013698,2]
[420755961,1776525183832,-500.0,0.00013698,2]
[420755962,1776525183842,-230.75228631,0.00013698,2]
[420755963,1776525183851,-166.66,0.00013699,2]
[420755964,1776525183860,-200.0,0.00013699,2]
[420755965,1776525183871,-153.0,0.00013699,2]
[420755966,1776525183880,-500.0,0.00013699,2]
[420755967,1776525183889,-153.0,0.00013699,2]
[420755968,1776525183898,-153.0,0.00013699,2]
[420755969,1776525183907,-404.38091973,0.00013699,2]
[420755970,1776525183916,-153.0,0.00013699,2]
[420755971,1776525183926,-153.0,0.00013699,2]
[420755972,1776525184308,-241.64340166,0.00013699,2]
[420755973,1776525184318,-153.0,0.00013699,2]
[420755974,1776525184327,-153.0,0.00013699,2]
[420755975,1776525184336,-378.87917584,0.00013699,2]
[420755976,1776525184346,-244.66737603,0.00013699,2]
[420755977,1776525184356,-200.0,0.00013699,2]
[420755978,1776525184366,-200.0,0.00013699,2]
[420755979,1776525184375,-519.92161244,0.00013699,2]
[420755980,1776525184386,-500.13090882,0.00013699,2]
[420755981,1776525184396,-150.0,0.00013699,2]
[420755982,1776525184406,-150.0,0.00013699,2]
[420755983,1776525184418,-194.99844357,0.00013699,2]
[420755984,1776525184427,-24205.75073168,0.000137,2]
[420755985,1776525201430,500.0,0.0003287,120]
[420755986,1776525211042,1756.5036237,0.00032876,120]
[420755987,1776525274915,-5451.29679256,0.00043953,120]
[420755988,1776525274982,-8632.15,0.00043953,120]
[420755989,1776525275050,-6970.28,0.00043953,120]
[420755990,1776525275112,-8632.15,0.00043953,120]
[420755991,1776525275175,-6970.28,0.00043953,120]
[420755992,1776525275238,-8632.15,0.00043953,120]
[420755993,1776525275303,-6970.28,0.00043953,120]
[420755994,1776525275366,-8632.15,0.00043953,120]
[420755995,1776525275430,-6970.28,0.00043953,120]
[420755996,1776525275502,-8632.15,0.00043953,120]
[420755997,1776525275568,-6970.28,0.00043953,120]
[420755998,1776525275631,-8632.15,0.00043953,120]
[420755999,1776525275694,-6970.28,0.00043953,120]
[420756000,1776525275756,-8632.15,0.00043953,120]
[420756001,1776525275820,-6970.28,0.00043953,120]
[420756002,1776525275883,-8632.15,0.00043953,120]
[420756003,1776525275949,-8632.15,0.00043953,120]
[420756004,1776525276012,-8632.15,0.00043953,120]
[420756005,1776525277804,-6970.28,0.00043953,120]
[420756006,1776525277884,-6970.28,0.00043953,120]
[420756007,1776525277954,-6970.28,0.00043953,120]
[420756008,1776525278021,-6970.28,0.00043953,120]
[420756009,1776525278085,-6970.28,0.00043953,120]
[420756010,1776525278147,-6970.28,0.00043953,120]
[420756011,1776525278210,-6970.28,0.00043953,120]
[420756012,1776525278271,-6970.28,0.00043953,120]
[420756013,1776525278334,-6970.28,0.00043953,120]
[420756014,1776525278399,-6970.28,0.00043953,120]
[420756015,1776525278464,-6970.28,0.00043953,120]
[420756016,1776525278527,-8632.15,0.00043953,120]
[420756017,1776525278596,-6970.47155852,0.00043953,120]
[420756018,1776525278661,-8632.15,0.00043953,120]
[420756019,1776525278724,-8632.15,0.00043953,120]
[420756020,1776525278787,-8632.15,0.00043953,120]
[420756021,1776525278851,-8632.15,0.00043953,120]
[420756022,1776525278912,-8632.15,0.00043953,120]
[420756023,1776525278974,-1002.86,0.00043953,120]
[420756024,1776525279037,-8632.15,0.00043953,120]
[420756025,1776525279097,-8632.19135177,0.00043953,120]
[420756026,1776525279158,-1002.86,0.00043953,120]
[420756027,1776525279220,-1002.86,0.00043953,120]
[420756028,1776525279280,-1002.86,0.00043953,120]
[420756029,1776525279340,-1002.86,0.00043953,120]
[420756030,1776525279402,-1002.86,0.00043953,120]
[420756031,1776525279465,-1002.86,0.00043953,120]
[420756032,1776525279529,-1002.86,0.00043953,120]
[420756033,1776525279592,-1002.86,0.00043953,120]
[420756034,1776525279656,-1002.86,0.00043953,120]
[420756035,1776525279717,-1002.86,0.00043953,120]
[420756036,1776525279780,-1002.86,0.00043953,120]
[420756037,1776525279843,-1002.86,0.00043953,120]
[420756038,1776525279906,-1002.86,0.00043953,120]
[420756039,1776525279974,-1002.86,0.00043953,120]
[420756040,1776525280040,-1002.86,0.00043953,120]
[420756041,1776525280103,-1002.86,0.00043953,120]
[420756042,1776525280166,-1002.86,0.00043953,120]
[420756043,1776525280228,-1002.86,0.00043953,120]
[420756044,1776525280290,-1002.86,0.00043953,120]
[420756045,1776525280353,-1002.86,0.00043953,120]
[420756046,1776525280419,-1002.86,0.00043953,120]
[420756047,1776525280483,-1002.86,0.00043953,120]
[420756048,1776525280547,-1003.04,0.00043953,120]
[420756049,1776525280611,-7246.49,0.00043953,120]
[420756050,1776525280676,-7246.49,0.00043953,120]
[420756051,1776525280740,-7246.49,0.00043953,120]
[420756052,1776525280804,-7246.49,0.00043953,120]
[420756053,1776525280867,-7246.49,0.00043953,120]
[420756054,1776525280929,-7246.49,0.00043953,120]
[420756055,1776525280993,-9565.09,0.00043953,120]
[420756056,1776525281058,-9565.09,0.00043953,120]
[420756057,1776525281121,-9565.09,0.00043953,120]
[420756058,1776525281181,-9565.09,0.00043953,120]
[420756059,1776525281243,-9565.09,0.00043953,120]
[420756060,1776525281307,-9565.09,0.00043953,120]
[420756061,1776525281370,-9565.09,0.00043953,120]
[420756062,1776525281432,-9565.09,0.00043953,120]
[420756063,1776525281493,-9565.09,0.00043953,120]
[420756064,1776525281557,-9565.09,0.00043953,120]
[420756065,1776525281623,-9565.09,0.00043953,120]
[420756066,1776525281690,-9565.09,0.00043953,120]
[420756067,1776525281757,-9565.09,0.00043953,120]
[420756068,1776525281825,-9565.09,0.00043953,120]
[420756069,1776525281891,-9565.09,0.00043953,120]
[420756070,1776525281958,-9565.09,0.00043953,120]
[420756071,1776525282024,-9565.09,0.00043953,120]
[420756072,1776525282089,-9565.09,0.00043953,120]
[420756073,1776525282151,-9565.09,0.00043953,120]
[420756074,1776525282213,-9565.09,0.00043953,120]
[420756075,1776525282275,-9565.09,0.00043953,120]
[420756076,1776525282337,-9565.09,0.00043953,120]
[420756077,1776525282399,-9565.09,0.00043953,120]
[420756078,1776525282461,-9565.32,0.00043953,120]
[420756079,1776525282522,-724.06,0.00043953,120]
[420756080,1776525282583,-724.06,0.00043953,120]
[420756081,1776525282646,-724.06,0.00043953,120]
[420756082,1776525282709,-724.06,0.00043953,120]
[420756083,1776525282769,-724.06,0.00043953,120]
[420756084,1776525282830,-724.06,0.00043953,120]
[420756085,1776525282890,-724.06,0.00043953,120]
[420756086,1776525282950,-724.06,0.00043953,120]
[420756087,1776525283009,-724.06,0.00043953,120]
[420756088,1776525283070,-724.06,0.00043953,120]
[420756089,1776525283130,-724.06,0.00043953,120]
[420756090,1776525283189,-724.06,0.00043953,120]
[420756091,1776525283249,-724.06,0.00043953,120]
[420756092,1776525283306,-7246.49,0.00043953,120]
[420756093,1776525283363,-724.06,0.00043953,120]
[420756094,1776525283421,-7246.49,0.00043953,120]
[420756095,1776525283479,-724.06,0.00043953,120]
[420756096,1776525283539,-7246.49,0.00043953,120]
[420756097,1776525283598,-724.06,0.00043953,120]
[420756098,1776525283660,-7246.49,0.00043953,120]
[420756099,1776525283721,-724.06,0.00043953,120]
[420756100,1776525283780,-7246.49,0.00043953,120]
[420756101,1776525283843,-7246.49,0.00043953,120]
[420756102,1776525283904,-724.06,0.00043953,120]
[420756103,1776525284258,-724.06,0.00043953,120]
[420756104,1776525284321,-724.06,0.00043953,120]
[420756105,1776525284382,-724.06,0.00043953,120]
[420756106,1776525284441,-7246.49,0.00043953,120]
[420756107,1776525284501,-724.06,0.00043953,120]
[420756108,1776525284562,-7246.49,0.00043953,120]
[420756109,1776525284622,-724.06,0.00043953,120]
[420756110,1776525284683,-7246.49,0.00043953,120]
[420756111,1776525284743,-724.18,0.00043953,120]
[420756112,1776525284804,-7246.49,0.00043953,120]
[420756113,1776525284864,-7246.49,0.00043953,120]
[420756114,1776525284927,-7246.49,0.00043953,120]
[420756115,1776525284989,-7246.49,0.00043953,120]
[420756116,1776525285050,-12192.62,0.00043953,120]
[420756117,1776525285110,-7246.49,0.00043953,120]
[420756118,1776525285169,-12192.62,0.00043953,120]
[420756119,1776525285228,-7246.49,0.00043953,120]
[420756120,1776525285287,-12192.62,0.00043953,120]
[420756121,1776525285345,-7246.49,0.00043953,120]
[420756122,1776525285404,-12192.62,0.00043953,120]
[420756123,1776525285464,-7246.49,0.00043953,120]
[420756124,1776525285525,-12192.62,0.00043953,120]
[420756125,1776525285586,-12192.62,0.00043953,120]
[420756126,1776525285647,-7246.5149115,0.00043953,120]
[420756127,1776525285705,-12192.62,0.00043953,120]
[420756128,1776525285763,-12192.62,0.00043953,120]
[420756129,1776525285821,-12192.62,0.00043953,120]
[420756130,1776525285879,-12192.62,0.00043953,120]
[420756131,1776525285939,-12192.62,0.00043953,120]
[420756132,1776525286000,-12192.62,0.00043953,120]
[420756133,1776525286060,-12192.62,0.00043953,120]
[420756134,1776525286120,-12192.62,0.00043953,120]
[420756135,1776525286180,-12192.62,0.00043953,120]
[420756136,1776525286239,-12192.62,0.00043953,120]
[420756137,1776525286299,-12192.62,0.00043953,120]
[420756138,1776525286360,-12192.62,0.00043953,120]
[420756139,1776525286419,-12192.62,0.00043953,120]
[420756140,1776525286480,-21600.39,0.00043953,120]
[420756141,1776525286543,-12192.62,0.00043953,120]
[420756142,1776525286606,-21600.39,0.00043953,120]
[420756143,1776525286667,-12192.62,0.00043953,120]
[420756144,1776525286728,-21600.39,0.00043953,120]
[420756145,1776525286790,-12192.62,0.00043953,120]
[420756146,1776525286852,-21600.39,0.00043953,120]
[420756147,1776525286913,-12192.62,0.00043953,120]
[420756148,1776525286974,-21600.39,0.00043953,120]
[420756149,1776525287035,-12192.77583122,0.00043953,120]
[420756150,1776525287096,-21600.39,0.00043953,120]
[420756151,1776525287157,-21600.39,0.00043953,120]
[420756152,1776525287218,-21600.39,0.00043953,120]
[420756153,1776525287281,-21600.39,0.00043953,120]
[420756154,1776525287342,-11045.55,0.00043953,120]
[420756155,1776525287404,-21600.39,0.00043953,120]
[420756156,1776525287467,-11045.55,0.00043953,120]
[420756157,1776525287530,-21600.39,0.00043953,120]
[420756158,1776525287595,-11045.55,0.00043953,120]
[420756159,1776525287659,-21600.39,0.00043953,120]
[420756160,1776525287721,-11045.55,0.00043953,120]
[420756161,1776525287785,-21600.39,0.00043953,120]
[420756162,1776525287848,-11045.55,0.00043953,120]
[420756163,1776525287912,-21600.39,0.00043953,120]
[420756164,1776525287976,-11045.55,0.00043953,120]
[420756165,1776525288041,-21600.39,0.00043953,120]
[420756166,1776525288103,-11045.55,0.00043953,120]
[420756167,1776525288164,-21600.39,0.00043953,120]
[420756168,1776525288225,-11045.55,0.00043953,120]
[420756169,1776525288288,-21600.39,0.00043953,120]
[420756170,1776525288351,-11045.55,0.00043953,120]
[420756171,1776525288415,-21600.39,0.00043953,120]
[420756172,1776525288478,-11045.55,0.00043953,120]
[420756173,1776525288545,-21600.39,0.00043953,120]
[420756174,1776525288611,-21600.39,0.00043953,120]
[420756175,1776525288676,-21600.39,0.00043953,120]
[420756176,1776525288741,-21600.39,0.00043953,120]
[420756177,1776525288806,-21600.39,0.00043953,120]
[420756178,1776525288871,-21600.40588007,0.00043953,120]
[420756179,1776525288934,-4725.44,0.00043953,120]
[420756180,1776525288998,-4725.44,0.00043953,120]
[420756181,1776525289062,-11045.55,0.00043953,120]
[420756182,1776525289125,-4725.44,0.00043953,120]
[420756183,1776525289186,-11045.55,0.00043953,120]
[420756184,1776525289251,-4725.44,0.00043953,120]
[420756185,1776525289313,-11045.55,0.00043953,120]
[420756186,1776525289376,-4725.44,0.00043953,120]
[420756187,1776525289440,-11045.55,0.00043953,120]
[420756188,1776525289504,-4725.44,0.00043953,120]
[420756189,1776525289569,-11045.55,0.00043953,120]
[420756190,1776525289633,-4725.44,0.00043953,120]
[420756191,1776525289698,-4725.44,0.00043953,120]
[420756192,1776525289761,-4725.44,0.00043953,120]
[420756193,1776525289824,-4725.44,0.00043953,120]
[420756194,1776525289889,-4478.22,0.00043953,120]
[420756195,1776525289954,-4725.44,0.00043953,120]
[420756196,1776525290018,-4478.22,0.00043953,120]
[420756197,1776525290081,-4725.44,0.00043953,120]
[420756198,1776525290144,-4478.22,0.00043953,120]
[420756199,1776525290207,-4725.44,0.00043953,120]
[420756200,1776525290269,-4478.22,0.00043953,120]
[420756201,1776525290331,-4725.44,0.00043953,120]
[420756202,1776525290393,-4478.22,0.00043953,120]
[420756203,1776525290455,-4478.22,0.00043953,120]
[420756204,1776525290518,-4478.22,0.00043953,120]
[420756205,1776525290583,-4478.22,0.00043953,120]
[420756206,1776525290648,-4478.22,0.00043953,120]
[420756207,1776525291070,-4478.22,0.00043953,120]
[420756208,1776525291136,-4478.22,0.00043953,120]
[420756209,1776525291202,-4478.22,0.00043953,120]
[420756210,1776525291270,-4478.22,0.00043953,120]
[420756211,1776525291338,-11045.55,0.00043953,120]
[420756212,1776525291405,-4478.22,0.00043953,120]
[420756213,1776525291474,-4725.44,0.00043953,120]
[420756214,1776525291540,-4478.22,0.00043953,120]
[420756215,1776525291605,-11045.55,0.00043953,120]
[420756216,1776525291671,-4725.44,0.00043953,120]
[420756217,1776525291735,-4478.22,0.00043953,120]
[420756218,1776525291799,-4725.44,0.00043953,120]
[420756219,1776525291864,-11045.55,0.00043953,120]
[420756220,1776525291931,-4478.22,0.00043953,120]
[420756221,1776525291997,-4725.44,0.00043953,120]
[420756222,1776525292065,-11045.55,0.00043953,120]
[420756223,1776525292131,-4725.44,0.00043953,120]
[420756224,1776525292196,-4478.22,0.00043953,120]
[420756225,1776525292268,-11045.55,0.00043953,120]
[420756226,1776525292333,-4725.44,0.00043953,120]
[420756227,1776525292401,-4478.22,0.00043953,120]
[420756228,1776525292466,-11045.55,0.00043953,120]
[420756229,1776525292534,-4725.44,0.00043953,120]
[420756230,1776525292605,-4478.22,0.00043953,120]
[420756231,1776525292674,-11045.55,0.00043953,120]
[420756232,1776525292741,-4725.44,0.00043953,120]
[420756233,1776525292809,-4478.22,0.00043953,120]
[420756234,1776525292890,-4725.44,0.00043953,120]
[420756235,1776525292959,-4478.22,0.00043953,120]
[420756236,1776525293026,-11045.55,0.00043953,120]
[420756237,1776525293089,-4725.62170388,0.00043953,120]
[420756238,1776525293155,-4478.22,0.00043953,120]
[420756239,1776525293220,-11045.6830293,0.00043953,120]
[420756240,1776525293284,-4478.41499716,0.00043953,120]